fUSD/lending_fUSD_20240423
["ID","MTS","AMOUNT","RATE_DAILY","PERIOD"]
[323285197,1713871852527,-500.0,0.00012095,2]
[323285198,1713871852536,-1787.69,0.00012095,2]
[323285199,1713871852546,-1433.16,0.00012095,2]
[323285200,1713871852555,-500.0,0.00012095,2]
[323285201,1713871852565,-200.54885542,0.00012095,2]
[323285202,1713871852575,-500.0,0.00012095,2]
[323285203,1713871852585,-1006.1,0.00012095,2]
[323285204,1713871852594,-500.0,0.00012095,2]
[323285205,1713871852604,-500.0,0.00012095,2]
[323285206,1713871852613,-1821.11,0.00012095,2]
[323285207,1713871852623,-500.0,0.00012095,2]
[323285208,1713871852632,-637.3,0.00012095,2]
[323285209,1713871852642,-24871.53,0.00012095,2]
[323285210,1713871852653,-1477.84,0.00012095,2]
[323285211,1713871852664,-500.0,0.00012095,2]
[323285212,1713871852676,-2122.21,0.00012095,2]
[323285213,1713871852686,-500.0,0.00012095,2]
[323285214,1713871852697,-2342.85,0.00012095,2]
[323285215,1713871852708,-505.09,0.00012095,2]
[323285216,1713871852718,-500.0,0.00012095,2]
[323285217,1713871852728,-930.33,0.00012095,2]
[323285218,1713871852738,-1393.2,0.00012095,2]
[323285219,1713871852749,-3351.1,0.00012095,2]
[323285220,1713871852766,-500.0,0.00012095,2]
[323285221,1713871852779,-1127.53,0.00012095,2]
[323285222,1713871852793,-643.48,0.00012095,2]
[323285223,1713871852805,-500.0,0.00012095,2]
[323285224,1713871852817,-500.0,0.00012095,2]
[323285225,1713871852828,-500.0,0.00012095,2]
[323285226,1713871852841,-854.94,0.00012095,2]
[323285227,1713871852854,-5162.62,0.00012095,2]
[323285228,1713871852867,-45186.54,0.00012095,2]
[323285229,1713871852881,-500.0,0.00012095,2]
[323285230,1713871852894,-1104.64,0.00012096,2]
[323285231,1713871852908,-1087.26,0.00012096,2]
[323285232,1713871852921,-500.0,0.00012096,2]
[323285233,1713871852932,-500.0,0.00012096,2]
[323285234,1713871852945,-406.92279072,0.00012096,2]
[323285235,1713871852959,-500.0,0.00012096,2]
[323285236,1713871852972,-500.0,0.00012096,2]
[323285237,1713871852985,-500.0,0.00012096,2]
[323285238,1713871852998,-500.0,0.00012096,2]
[323285239,1713871853009,-500.0,0.00012096,2]
[323285240,1713871853024,-500.0,0.00012096,2]
[323285241,1713871853037,-500.0,0.00012096,2]
[323285242,1713871853048,-1159.71,0.00012096,2]
[323285243,1713871853058,-688.55,0.00012096,2]
[323285244,1713871853070,-500.0,0.00012096,2]
[323285245,1713871853085,-1154.44,0.00012096,2]
[323285246,1713871853099,-920.53,0.00012096,2]
[323285247,1713871853112,-500.0,0.00012096,2]
[323285248,1713871853125,-500.0,0.00012096,2]
[323285249,1713871853137,-500.0,0.00012096,2]
[323285250,1713871853150,-500.0,0.00012096,2]
[323285251,1713871853162,-662.09,0.00012096,2]
[323285252,1713871853172,-500.0,0.00012096,2]
[323285253,1713871853185,-972.07,0.00012096,2]
[323285254,1713871853197,-500.0,0.00012096,2]
[323285255,1713871853209,-500.0,0.00012096,2]
[323285256,1713871853222,-500.0,0.00012096,2]
[323285257,1713871853235,-500.0,0.00012096,2]
[323285258,1713871853248,-500.0,0.00012096,2]
[323285259,1713871853260,-874.43,0.00012096,2]
[323285260,1713871853271,-500.0,0.00012096,2]
[323285261,1713871853281,-806.66,0.00012096,2]
[323285262,1713871853291,-500.0,0.00012096,2]
[323285263,1713871853301,-992.39,0.00012096,2]
[323285264,1713871853313,-799.06,0.00012096,2]
[323285265,1713871853325,-500.0,0.00012096,2]
[323285266,1713871853336,-500.0,0.00012096,2]
[323285267,1713871853347,-500.0,0.00012096,2]
[323285268,1713871853360,-500.0,0.00012096,2]
[323285269,1713871853372,-500.0,0.00012096,2]
[323285270,1713871853383,-500.0,0.00012096,2]
[323285271,1713871853393,-500.0,0.00012096,2]
[323285272,1713871853404,-500.0,0.00012096,2]
[323285273,1713871853414,-500.0,0.00012096,2]
[323285274,1713871853426,-819.54,0.00012096,2]
[323285275,1713871853438,-641.23,0.00012096,2]
[323285276,1713871853450,-622.64,0.00012096,2]
[323285277,1713871853460,-500.0,0.00012096,2]
[323285278,1713871853471,-894.72,0.00012096,2]
[323285279,1713871853482,-589.24,0.00012096,2]
[323285280,1713871853493,-446.30863954,0.00012096,2]
[323285281,1713871853504,-890.49,0.00012096,2]
[323285282,1713871853516,-500.0,0.00012096,2]
[323285283,1713871853528,-693.8,0.00012096,2]
[323285284,1713871853538,-1439.01,0.00012096,2]
[323285285,1713871853549,-500.0,0.00012096,2]
[323285286,1713871853559,-500.0,0.00012096,2]
[323285287,1713871853570,-544.76,0.00012096,2]
[323285288,1713871853581,-500.0,0.00012096,2]
[323285289,1713871853591,-642.23,0.00012096,2]
[323285290,1713871853602,-1140.65,0.00012096,2]
[323285291,1713871853612,-500.0,0.00012096,2]
[323285292,1713871853623,-645.43,0.00012096,2]
[323285293,1713871853633,-500.0,0.00012096,2]
[323285294,1713871853644,-1468.39,0.00012096,2]
[323285295,1713871853655,-530.26,0.00012096,2]
[323285296,1713871853668,-1798.04,0.00012096,2]
[323285297,1713871853679,-602.85,0.00012096,2]
[323285298,1713871853690,-540.95,0.00012096,2]
[323285299,1713871853701,-500.0,0.00012096,2]
[323285300,1713871853711,-500.0,0.00012096,2]
[323285301,1713871853722,-500.0,0.00012096,2]
[323285302,1713871853733,-220.43917174,0.00012096,2]
[323285303,1713871853744,-500.0,0.00012096,2]
[323285304,1713871853754,-500.0,0.00012096,2]
[323285305,1713871853765,-708.86,0.00012096,2]
[323285306,1713871853776,-500.0,0.00012096,2]
[323285307,1713871853787,-500.0,0.00012096,2]
[323285308,1713871853797,-500.0,0.00012096,2]
[323285309,1713871853808,-500.0,0.00012096,2]
[323285310,1713871853822,-718.03,0.00012096,2]
[323285311,1713871853834,-500.0,0.00012096,2]
[323285312,1713871853845,-848.63,0.00012096,2]
[323285313,1713871853857,-500.0,0.00012096,2]
[323285314,1713871853868,-520.04490783,0.00012096,2]
[323285315,1713871853879,-810.11,0.00012096,2]
[323285316,1713871853891,-500.0,0.00012096,2]
[323285317,1713871853903,-950.48,0.00012096,2]
[323285318,1713871853913,-1960.02,0.00012096,2]
[323285319,1713871853924,-870.32,0.00012096,2]
[323285320,1713871853937,-711.68,0.00012096,2]
[323285321,1713871853948,-529.66,0.00012096,2]
[323285322,1713871853959,-613.2,0.00012096,2]
[323285323,1713871853971,-500.0,0.00012096,2]
[323285324,1713871853982,-1181.54,0.00012096,2]
[323285325,1713871853995,-1500.18,0.00012096,2]
[323285326,1713871854006,-866.55,0.00012096,2]
[323285327,1713871854017,-730.67,0.00012096,2]
[323285328,1713871854028,-500.0,0.00012096,2]
[323285329,1713871854039,-500.0,0.00012096,2]
[323285330,1713871854050,-500.0,0.00012096,2]
[323285331,1713871854062,-3198.2,0.00012096,2]
[323285332,1713871854073,-908.37,0.00012096,2]
[323285333,1713871854084,-654.32,0.00012096,2]
[323285334,1713871854096,-771.21,0.00012096,2]
[323285335,1713871854108,-8802.65,0.00012096,2]
[323285336,1713871854119,-882.55,0.00012096,2]
[323285337,1713871854131,-500.0,0.00012096,2]
[323285338,1713871854141,-500.0,0.00012096,2]
[323285339,1713871854153,-3092.05,0.00012096,2]
[323285340,1713871854164,-1099.1,0.00012096,2]
[323285341,1713871854176,-500.0,0.00012096,2]
[323285342,1713871854187,-500.0,0.00012096,2]
[323285343,1713871854198,-500.0,0.00012096,2]
[323285344,1713871854209,-500.0,0.00012096,2]
[323285345,1713871854220,-500.0,0.00012096,2]
[323285346,1713871854232,-927.37,0.00012096,2]
[323285347,1713871854244,-500.0,0.00012096,2]
[323285348,1713871854255,-500.0,0.00012096,2]
[323285349,1713871854266,-500.0,0.00012096,2]
[323285350,1713871854278,-500.0,0.00012096,2]
[323285351,1713871854289,-555.92,0.00012096,2]
[323285352,1713871854300,-500.0,0.00012097,2]
[323285353,1713871854311,-723.07,0.00012097,2]
[323285354,1713871854322,-641.32,0.00012097,2]
[323285355,1713871854334,-500.0,0.00012097,2]
[323285356,1713871854345,-6499.75440211,0.00012109,2]
[323285357,1713871854357,-155.25533383,0.00012127,2]
[323285358,1713871854368,-164.4337922,0.00012127,2]
[323285359,1713871854379,-3006.10621285,0.00012128,2]
[323285360,1713871854390,-167.52787288,0.00012128,2]
[323285361,1713871854401,-194.75745917,0.00012128,2]
[323285362,1713871854411,-342.22232771,0.00012128,2]
[323285363,1713871854422,-621.61066355,0.00012128,2]
[323285364,1713871854433,-1163.66340728,0.00012128,2]
[323285365,1713871854444,-181.28407634,0.00012128,2]
[323285366,1713871854455,-782.66617723,0.00012128,2]
[323285367,1713871854466,-281.53954571,0.00012128,2]
[323285368,1713871854478,-321.86410706,0.00012128,2]
[323285369,1713871854489,-206.37011773,0.00012128,2]
[323285370,1713871854500,-509.10572228,0.00012128,2]
[323285371,1713871854510,-181.40893477,0.00012128,2]
[323285372,1713871854521,-175.69423454,0.00012128,2]
[323285373,1713871854532,-6499.75440211,0.0001224,2]
[323285374,1713871854543,-234.97142404,0.00012277,2]
[323285375,1713871854554,-872.23711713,0.00012278,2]
[323285376,1713871854565,-455.78271799,0.000123,2]
[323285377,1713871854576,-201.73003455,0.000123,2]
[323285378,1713871854587,-157.042319,0.00012348,2]
[323285379,1713871854598,-157.042319,0.00012348,2]
[323285380,1713871854609,-157.042319,0.00012348,2]
[323285381,1713871854620,-9466.6628928,0.00012361,2]
[323285382,1713871854631,-500.0,0.00012368,2]
[323285383,1713871854642,-1896.92,0.00012368,2]
[323285384,1713871854654,-500.0,0.00012368,2]
[323285385,1713871854668,-1234.83,0.00012368,2]
[323285386,1713871854679,-500.0,0.00012368,2]
[323285387,1713871854690,-3765.16,0.00012368,2]
[323285388,1713871854701,-505.5414793,0.00012368,2]
[323285389,1713871854714,-500.0,0.00012368,2]
[323285390,1713871854725,-3758.2,0.00012368,2]
[323285391,1713871854736,-500.0,0.00012368,2]
[323285392,1713871854748,-500.0,0.00012368,2]
[323285393,1713871854759,-8405.67,0.00012368,2]
[323285394,1713871854771,-1070.9,0.00012368,2]
[323285395,1713871854782,-1028.79,0.00012368,2]
[323285396,1713871854794,-500.0,0.00012368,2]
[323285397,1713871854805,-3041.11,0.00012368,2]
[323285398,1713871854816,-9734.69,0.00012368,2]
[323285399,1713871854827,-500.0,0.00012368,2]
[323285400,1713871854838,-5354.4,0.00012368,2]
[323285401,1713871854850,-946.14,0.00012368,2]
[323285402,1713871854861,-500.0,0.00012368,2]
[323285403,1713871854871,-537.38565693,0.00012368,2]
[323285404,1713871854883,-1522.26,0.00012368,2]
[323285405,1713871854895,-500.0,0.00012368,2]
[323285406,1713871854906,-500.0,0.00012368,2]
[323285407,1713871854919,-854.73,0.00012368,2]
[323285408,1713871854930,-514.3,0.00012368,2]
[323285409,1713871854941,-500.0,0.00012368,2]
[323285410,1713871854952,-500.0,0.00012368,2]
[323285411,1713871854963,-938.35,0.00012368,2]
[323285412,1713871854974,-538.28,0.00012368,2]
[323285413,1713871854985,-500.0,0.00012368,2]
[323285414,1713871854996,-851.35,0.00012368,2]
[323285415,1713871855007,-652.45,0.00012368,2]
[323285416,1713871855018,-500.0,0.00012368,2]
[323285417,1713871855029,-762.8,0.00012368,2]
[323285418,1713871855041,-907.45,0.00012369,2]
[323285419,1713871855051,-1525.06,0.00012369,2]
[323285420,1713871855063,-391.02406623,0.00012369,2]
[323285421,1713871855074,-1013.84,0.00012369,2]
[323285422,1713871855085,-495.489,0.00012369,2]
[323285423,1713871855096,-294.39250843,0.00012369,2]
[323285424,1713871855107,-963.26,0.00012369,2]
[323285425,1713871855118,-500.0,0.00012369,2]
[323285426,1713871855129,-500.0,0.00012369,2]
[323285427,1713871855140,-500.0,0.00012369,2]
[323285428,1713871855152,-528.37,0.00012369,2]
[323285429,1713871855163,-500.0,0.00012369,2]
[323285430,1713871855173,-500.0,0.00012369,2]
[323285431,1713871855185,-500.0,0.00012369,2]
[323285432,1713871855196,-613.2,0.00012369,2]
[323285433,1713871855207,-500.0,0.00012369,2]
[323285434,1713871855218,-1360.4,0.00012369,2]
[323285435,1713871855229,-500.0,0.00012369,2]
[323285436,1713871855240,-980.6,0.00012369,2]
[323285437,1713871855251,-500.0,0.00012369,2]
[323285438,1713871855263,-2078.28,0.00012369,2]
[323285439,1713871855273,-500.0,0.00012369,2]
[323285440,1713871855284,-1298.26,0.00012369,2]
[323285441,1713871855295,-673.09,0.00012369,2]
[323285442,1713871855305,-500.0,0.00012369,2]
[323285443,1713871855316,-500.0,0.00012369,2]
[323285444,1713871855327,-500.0,0.00012369,2]
[323285445,1713871855338,-500.0,0.00012369,2]
[323285446,1713871855349,-775.01,0.00012369,2]
[323285447,1713871855361,-3552.32,0.00012369,2]
[323285448,1713871855373,-2623.78,0.00012369,2]
[323285449,1713871855737,-500.0,0.00012369,2]
[323285450,1713871855754,-1396.25,0.00012369,2]
[323285451,1713871855765,-1254.72,0.00012369,2]
[323285452,1713871855775,-500.0,0.00012369,2]
[323285453,1713871855785,-862.5,0.00012369,2]
[323285454,1713871855795,-1216.26,0.00012369,2]
[323285455,1713871855804,-500.0,0.00012369,2]
[323285456,1713871855813,-500.0,0.00012369,2]
[323285457,1713871855823,-1878.46,0.00012369,2]
[323285458,1713871855832,-500.0,0.00012369,2]
[323285459,1713871855842,-5560.76,0.00012369,2]
[323285460,1713871855852,-500.0,0.00012369,2]
[323285461,1713871855861,-500.0,0.00012369,2]
[323285462,1713871855870,-3130.54,0.00012369,2]
[323285463,1713871855881,-646.91,0.00012369,2]
[323285464,1713871855890,-500.0,0.00012369,2]
[323285465,1713871855900,-625.36,0.00012369,2]
[323285466,1713871855910,-500.0,0.00012369,2]
[323285467,1713871855919,-729.31,0.00012369,2]
[323285468,1713871855930,-500.0,0.00012369,2]
[323285469,1713871855940,-606.95,0.00012369,2]
[323285470,1713871855950,-500.0,0.00012369,2]
[323285471,1713871855960,-578.89596849,0.00012369,2]
[323285472,1713871855970,-500.0,0.00012369,2]
[323285473,1713871855980,-530.77,0.00012369,2]
[323285474,1713871855990,-4503.64,0.00012369,2]
[323285475,1713871855999,-500.0,0.00012369,2]
[323285476,1713871856008,-2500.73,0.00012369,2]
[323285477,1713871856018,-986.19,0.00012369,2]
[323285478,1713871856028,-334.3870736,0.00012369,2]
[323285479,1713871856038,-500.0,0.00012369,2]
[323285480,1713871856048,-500.0,0.00012369,2]
[323285481,1713871856057,-564.79,0.00012369,2]
[323285482,1713871856066,-2251.35,0.00012369,2]
[323285483,1713871856075,-754.05,0.00012369,2]
[323285484,1713871856085,-500.0,0.00012369,2]
[323285485,1713871856094,-3596.76,0.00012369,2]
[323285486,1713871856103,-500.0,0.00012369,2]
[323285487,1713871856114,-2085.86,0.00012369,2]
[323285488,1713871856124,-1084.42,0.00012369,2]
[323285489,1713871856134,-500.0,0.00012369,2]
[323285490,1713871856144,-2835.65,0.00012369,2]
[323285491,1713871856153,-500.0,0.00012369,2]
[323285492,1713871856162,-500.0,0.00012369,2]
[323285493,1713871856172,-9181.46,0.00012369,2]
[323285494,1713871856181,-500.0,0.00012369,2]
[323285495,1713871856190,-761.08,0.00012369,2]
[323285496,1713871856199,-353.73031939,0.00012369,2]
[323285497,1713871856211,-1898.93,0.00012369,2]
[323285498,1713871856220,-500.0,0.00012369,2]
[323285499,1713871856229,-10139.44,0.00012369,2]
[323285500,1713871856238,-1470.41,0.00012369,2]
[323285501,1713871856247,-500.0,0.00012369,2]
[323285502,1713871856257,-1787.69,0.00012369,2]
[323285503,1713871856267,-1433.16,0.00012369,2]
[323285504,1713871856276,-500.0,0.00012369,2]
[323285505,1713871856286,-500.0,0.00012369,2]
[323285506,1713871856295,-1006.1,0.00012369,2]
[323285507,1713871856304,-500.0,0.00012369,2]
[323285508,1713871856314,-500.0,0.00012369,2]
[323285509,1713871856323,-1821.11,0.00012369,2]
[323285510,1713871856332,-500.0,0.00012369,2]
[323285511,1713871856341,-637.3,0.00012369,2]
[323285512,1713871856351,-24871.53,0.00012369,2]
[323285513,1713871856360,-1477.84,0.00012369,2]
[323285514,1713871856370,-500.0,0.00012369,2]
[323285515,1713871856380,-2122.21,0.00012369,2]
[323285516,1713871856388,-500.0,0.00012369,2]
[323285517,1713871856398,-2342.85,0.00012369,2]
[323285518,1713871856407,-505.09,0.00012369,2]
[323285519,1713871856416,-500.0,0.00012369,2]
[323285520,1713871856425,-930.33,0.00012369,2]
[323285521,1713871856435,-1393.2,0.00012369,2]
[323285522,1713871856444,-3351.1,0.00012369,2]
[323285523,1713871856454,-500.0,0.00012369,2]
[323285524,1713871856463,-1127.53,0.00012369,2]
[323285525,1713871856472,-643.48,0.00012369,2]
[323285526,1713871856482,-500.0,0.00012369,2]
[323285527,1713871856491,-500.0,0.00012369,2]
[323285528,1713871856500,-500.0,0.00012369,2]
[323285529,1713871856510,-854.94,0.00012369,2]
[323285530,1713871856519,-5162.62,0.00012369,2]
[323285531,1713871856528,-45186.54,0.00012369,2]
[323285532,1713871856538,-500.0,0.00012369,2]
[323285533,1713871856547,-1104.64,0.0001237,2]
[323285534,1713871856556,-1087.26,0.0001237,2]
[323285535,1713871856566,-500.0,0.0001237,2]
[323285536,1713871856575,-500.0,0.0001237,2]
[323285537,1713871856584,-500.0,0.0001237,2]
[323285538,1713871856593,-500.0,0.0001237,2]
[323285539,1713871856603,-500.0,0.0001237,2]
[323285540,1713871856612,-500.0,0.0001237,2]
[323285541,1713871856621,-500.0,0.0001237,2]
[323285542,1713871856630,-500.0,0.0001237,2]
[323285543,1713871856639,-383.59159474,0.0001237,2]
[323285544,1713871856649,-1159.71,0.0001237,2]
[323285545,1713871856658,-688.55,0.0001237,2]
[323285546,1713871856670,-202.52,0.0001237,2]
[323285547,1713871856679,-1154.44,0.0001237,2]
[323285548,1713871856688,-920.53,0.0001237,2]
[323285549,1713871856698,-500.0,0.0001237,2]
[323285550,1713871856709,-500.0,0.0001237,2]
[323285551,1713871856719,-500.0,0.0001237,2]
[323285552,1713871856728,-500.0,0.0001237,2]
[323285553,1713871856736,-662.09,0.0001237,2]
[323285554,1713871856749,-500.0,0.0001237,2]
[323285555,1713871856757,-972.07,0.0001237,2]
[323285556,1713871856767,-500.0,0.0001237,2]
[323285557,1713871856776,-500.0,0.0001237,2]
[323285558,1713871856785,-500.0,0.0001237,2]
[323285559,1713871856794,-500.0,0.0001237,2]
[323285560,1713871856803,-500.0,0.0001237,2]
[323285561,1713871856813,-874.43,0.0001237,2]
[323285562,1713871856822,-500.0,0.0001237,2]
[323285563,1713871856832,-806.66,0.0001237,2]
[323285564,1713871856843,-500.0,0.0001237,2]
[323285565,1713871856852,-992.39,0.0001237,2]
[323285566,1713871856860,-799.06,0.0001237,2]
[323285567,1713871856869,-500.0,0.0001237,2]
[323285568,1713871856878,-500.0,0.0001237,2]
[323285569,1713871856887,-500.0,0.0001237,2]
[323285570,1713871856896,-500.0,0.0001237,2]
[323285571,1713871856905,-500.0,0.0001237,2]
[323285572,1713871856914,-500.0,0.0001237,2]
[323285573,1713871856924,-500.0,0.0001237,2]
[323285574,1713871856932,-500.0,0.0001237,2]
[323285575,1713871856941,-819.54,0.0001237,2]
[323285576,1713871856950,-641.23,0.0001237,2]
[323285577,1713871856961,-500.0,0.0001237,2]
[323285578,1713871856970,-894.72,0.0001237,2]
[323285579,1713871856979,-589.24,0.0001237,2]
[323285580,1713871856988,-890.49,0.0001237,2]
[323285581,1713871856997,-500.0,0.0001237,2]
[323285582,1713871857006,-693.8,0.0001237,2]
[323285583,1713871857015,-1439.01,0.0001237,2]
[323285584,1713871857024,-500.0,0.0001237,2]
[323285585,1713871857033,-500.0,0.0001237,2]
[323285586,1713871857044,-544.76,0.0001237,2]
[323285587,1713871857053,-500.0,0.0001237,2]
[323285588,1713871857062,-642.23,0.0001237,2]
[323285589,1713871857071,-1140.65,0.0001237,2]
[323285590,1713871857080,-500.0,0.0001237,2]
[323285591,1713871857089,-645.43,0.0001237,2]
[323285592,1713871857098,-500.0,0.0001237,2]
[323285593,1713871857109,-1468.39,0.0001237,2]
[323285594,1713871857119,-530.26,0.0001237,2]
[323285595,1713871857129,-1798.04,0.0001237,2]
[323285596,1713871857139,-602.85,0.0001237,2]
[323285597,1713871857151,-540.95,0.0001237,2]
[323285598,1713871857161,-270.25936863,0.0001237,2]
[323285599,1713871857170,-500.0,0.0001237,2]
[323285600,1713871857179,-500.0,0.0001237,2]
[323285601,1713871857188,-500.0,0.0001237,2]
[323285602,1713871857197,-500.0,0.0001237,2]
[323285603,1713871857207,-708.86,0.0001237,2]
[323285604,1713871857217,-500.0,0.0001237,2]
[323285605,1713871857226,-500.0,0.0001237,2]
[323285606,1713871857236,-500.0,0.0001237,2]
[323285607,1713871857245,-500.0,0.0001237,2]
[323285608,1713871857257,-718.03,0.0001237,2]
[323285609,1713871857266,-500.0,0.0001237,2]
[323285610,1713871857275,-848.63,0.0001237,2]
[323285611,1713871857286,-500.0,0.0001237,2]
[323285612,1713871857296,-810.11,0.0001237,2]
[323285613,1713871857306,-500.0,0.0001237,2]
[323285614,1713871857315,-950.48,0.0001237,2]
[323285615,1713871857323,-1960.02,0.0001237,2]
[323285616,1713871857334,-870.32,0.0001237,2]
[323285617,1713871857343,-711.68,0.0001237,2]
[323285618,1713871857354,-529.66,0.0001237,2]
[323285619,1713871857364,-613.2,0.0001237,2]
[323285620,1713871857373,-500.0,0.0001237,2]
[323285621,1713871857382,-1181.54,0.0001237,2]
[323285622,1713871857391,-1500.18,0.0001237,2]
[323285623,1713871857400,-866.55,0.0001237,2]
[323285624,1713871857409,-730.67,0.0001237,2]
[323285625,1713871857418,-500.0,0.0001237,2]
[323285626,1713871857427,-500.0,0.0001237,2]
[323285627,1713871857436,-500.0,0.0001237,2]
[323285628,1713871857445,-3198.2,0.0001237,2]
[323285629,1713871857456,-908.37,0.0001237,2]
[323285630,1713871857465,-654.32,0.0001237,2]
[323285631,1713871857474,-771.21,0.0001237,2]
[323285632,1713871857484,-8802.65,0.0001237,2]
[323285633,1713871857493,-882.55,0.0001237,2]
[323285634,1713871857502,-500.0,0.0001237,2]
[323285635,1713871857511,-500.0,0.0001237,2]
[323285636,1713871857520,-3092.05,0.0001237,2]
[323285637,1713871857530,-1099.1,0.0001237,2]
[323285638,1713871857540,-644.42078158,0.0001237,2]
[323285639,1713871857549,-500.0,0.0001237,2]
[323285640,1713871857558,-500.0,0.0001237,2]
[323285641,1713871857568,-500.0,0.0001237,2]
[323285642,1713871857577,-500.0,0.0001237,2]
[323285643,1713871857586,-927.37,0.0001237,2]
[323285644,1713871857595,-500.0,0.0001237,2]
[323285645,1713871857606,-500.0,0.0001237,2]
[323285646,1713871857616,-500.0,0.0001237,2]
[323285647,1713871857626,-500.0,0.0001237,2]
[323285648,1713871857635,-555.92,0.0001237,2]
[323285649,1713871857645,-500.0,0.00012371,2]
[323285650,1713871857654,-723.07,0.00012371,2]
[323285651,1713871857667,-641.32,0.00012371,2]
[323285652,1713871857676,-500.0,0.00012371,2]
[323285653,1713871857686,-6499.75440211,0.00012372,2]
[323285654,1713871857696,-157.042319,0.00012398,2]
[323285655,1713871857708,-157.042319,0.00012398,2]
[323285656,1713871857719,-157.042319,0.00012398,2]
[323285657,1713871857729,-157.042319,0.00012398,2]
[323285658,1713871857739,-157.042319,0.00012398,2]
[323285659,1713871857749,-10000.0,0.000124,2]
[323285660,1713871857759,-3755.7499922,0.000124,2]
[323285661,1713871857768,-328.840675,0.000124,2]
[323285662,1713871857779,-986.43983185,0.000124,2]
[323285663,1713871857789,-1758.7809829,0.00012434,2]
[323285664,1713871857800,-1877.6346223,0.00012434,2]
[323285665,1713871857810,-3406.6783102,0.00012434,2]
[323285666,1713871857820,-3636.8923729,0.00012434,2]
[323285667,1713871857830,-10152.7587386,0.00012436,2]
[323285668,1713871857839,-10838.8545843,0.00012436,2]
[323285669,1713871857849,-316895.9571565,0.00012443,2]
[323285670,1713871858162,-1545.88121157,0.00012443,2]
[323285671,1713871858183,-96789.33624704,0.00012443,2]
[323285672,1713871858194,-241588.94362316,0.00012443,2]
[323285673,1713871858205,-2682.400853,0.00012443,2]
[323285674,1713871858879,-663.83898792,0.00011272,2]
[323285675,1713871858891,-7108.87137147,0.00011272,2]
[323285676,1713871858903,-29118.67964061,0.00011272,2]
[323285677,1713871858913,-10000.0,0.00011405,2]
[323285678,1713871858923,-499.99,0.00011536,2]
[323285679,1713871858933,-313.26889167,0.00011538,2]
[323285680,1713871858943,-36891.39,0.00011546,2]
[323285681,1713871858954,-313.26889167,0.00011812,2]
[323285682,1713871858963,-36891.39,0.0001182,2]
[323285683,1713871858973,-313.26889167,0.00012085,2]
[323285684,1713871858983,-117975.19541255,0.00012443,2]
[323285685,1713871859014,-656.35,0.00012094,2]
[323285686,1713871859026,-33432.09478405,0.00012094,2]
[323285687,1713871859414,-719.84129831,0.00011902,2]
[323285688,1713871859426,-300.0,0.00011902,2]
[323285689,1713871859448,-184.65170169,0.00011902,2]
[323285690,1713871859460,-2615.62513999,0.00012094,2]
[323285691,1713871859489,-187.32007596,0.00012094,2]
[323285692,1713871859498,-7340.02449988,0.00012368,2]
[323285693,1713871859511,-29551.36550012,0.00012368,2]
[323285694,1713871859521,-198738.66526952,0.00012443,2]
[323285695,1713871859533,-302.60962023,0.00012443,2]
[323285696,1713871859543,-157.042319,0.00012448,2]